lending/lending_fUSD_20250815
["ID","MTS","AMOUNT","RATE_DAILY","PERIOD"]
[379240835,1755216004523,776.73,0.000279,120]
[379240838,1755216057643,5170.89350907,0.00025561,30]
[379240839,1755216102290,1529.0,0.0003013,120]
[379240840,1755216103124,1159.11040934,0.0003013,120]
[379240841,1755216105395,1509.0,0.0003013,120]
[379240842,1755216106177,497.0,0.0003013,120]
[379240843,1755216291858,150.0,0.00030136,120]
[379240844,1755216298091,150.0,0.00030136,120]
[379240845,1755216306030,150.0,0.00030136,120]
[379240846,1755216310558,150.0,0.00030136,120]
[379240847,1755216328613,150.0,0.00030136,120]
[379240848,1755216340512,3600.0,0.00026,30]
[379240849,1755216344363,602.0,0.0003013,120]
[379240850,1755216392567,3600.0,0.00030137,120]
[379240851,1755216449045,150.0,0.00030136,120]
[379240861,1755216501234,150.0,0.00030136,120]
[379240862,1755216508765,150.0,0.00030136,120]
[379240863,1755216514959,150.0,0.00030136,120]
[379240864,1755216522951,150.0,0.00030136,120]
[379240865,1755216524694,1760.0,0.0003013,120]
[379240866,1755216525005,541.82178987,0.00030136,120]
[379240867,1755216560087,689.0,0.0002,2]
[379240889,1755216568675,1000.0,0.0003013,120]
[379240890,1755216579115,366.3,0.00024685,30]
[379240891,1755216582874,211.0,0.0003013,120]
[379240892,1755216604186,195.62,0.00030136,120]
[379240894,1755216633217,-191.97148911,0.00021155,2]
[379240895,1755216633227,-675.0,0.0002118,2]
[379240896,1755216633237,-1324.0,0.0002237,2]
[379240897,1755216633247,-157.64,0.00022505,2]
[379240898,1755216633256,-606.97,0.00023211,2]
[379240899,1755216633266,-614.75,0.00023415,2]
[379240900,1755216633276,-983.83,0.00023441,2]
[379240901,1755216633286,-1296.0,0.0002355,2]
[379240902,1755216633296,-499.0,0.00023626,2]
[379240903,1755216633305,-300.0,0.00023626,2]
[379240904,1755216633315,-180.14,0.00023627,2]
[379240905,1755216633325,-432.56679437,0.00023627,2]
[379240906,1755216633337,-567.43320563,0.00023627,2]
[379240907,1755216633346,-262.37,0.00023627,2]
[379240908,1755216633356,-666.0,0.00023627,3]
[379240909,1755216633365,-262.37,0.0002364,2]
[379240910,1755216633374,-262.37,0.00023652,2]
[379240911,1755216633384,-262.37,0.00023665,2]
[379240912,1755216633394,-262.37,0.00023677,2]
[379240913,1755216633404,-262.37,0.0002369,2]
[379240914,1755216633413,-262.37,0.00023702,2]
[379240915,1755216633422,-262.37,0.00023715,2]
[379240916,1755216633432,-4253.0,0.00023715,2]
[379240917,1755216633442,-231.02,0.00023726,2]
[379240918,1755216633452,-262.37,0.00023727,2]
[379240919,1755216633461,-262.37,0.00023739,2]
[379240920,1755216633474,-262.37,0.00023752,2]
[379240921,1755216633484,-262.37,0.00023764,2]
[379240922,1755216633493,-262.37,0.00023777,2]
[379240923,1755216633503,-262.37,0.00023789,2]
[379240924,1755216633515,-262.37,0.00023802,2]
[379240925,1755216633524,-262.37,0.00023814,2]
[379240926,1755216633533,-262.37,0.00023826,2]
[379240927,1755216633543,-164.33,0.00023835,2]
[379240928,1755216633553,-262.37,0.00023839,2]
[379240929,1755216633563,-262.37,0.00023851,2]
[379240930,1755216633573,-262.37,0.00023864,2]
[379240931,1755216633583,-150.0,0.0002397,2]
[379240932,1755216633592,-300.0,0.0002397,2]
[379240933,1755216633602,-150.0,0.0002397,2]
[379240934,1755216633612,-685.94,0.00024,4]
[379240935,1755216633622,-587.14,0.00024034,2]
[379240936,1755216633632,-170.0,0.0002405,7]
[379240937,1755216633643,-150.0,0.00024056,2]
[379240938,1755216633653,-150.0,0.00024056,2]
[379240939,1755216633662,-150.0,0.00024056,2]
[379240940,1755216633672,-1852.42,0.00024069,2]
[379240941,1755216633682,-2704.74,0.00024086,2]
[379240942,1755216633691,-176.2,0.00024107,2]
[379240943,1755216633701,-165.2,0.00024117,2]
[379240944,1755216633711,-250.0,0.00024121,2]
[379240945,1755216633720,-1203.36,0.00024158,2]
[379240946,1755216633730,-1338.0,0.0002425,2]
[379240947,1755216633739,-333.13,0.00024251,2]
[379240948,1755216633749,-568.0,0.00024263,2]
[379240949,1755216633759,-1100.0,0.000244,8]
[379240950,1755216633769,-2499.18847519,0.0002442,2]
[379240951,1755216633779,-277.35679052,0.0002442,2]
[379240952,1755216633788,-9274.81107495,0.0002442,2]
[379240953,1755216633798,-448.77,0.00024429,2]
[379240954,1755216633807,-1068.0654754,0.00024475,2]
[379240955,1755216633817,-797.99,0.000245,2]
[379240956,1755216633826,-797.99,0.000245,2]
[379240957,1755216633835,-2200.0,0.000245,8]
[379240958,1755216633845,-3300.0,0.000246,8]
[379240959,1755216633854,-231.02,0.00024616,2]
[379240960,1755216633864,-309.64,0.00024658,2]
[379240961,1755216633873,-4400.0,0.000247,9]
[379240962,1755216633882,-500.0,0.00024716,2]
[379240963,1755216633892,-204.52985416,0.00024716,2]
[379240964,1755216633902,-154.54091241,0.00024716,2]
[379240965,1755216633911,-500.0,0.00024716,2]
[379240966,1755216633921,-500.0,0.00024716,2]
[379240967,1755216633930,-1269.0,0.0002473,2]
[379240968,1755216633940,-1000.0,0.0002478,2]
[379240969,1755216633949,-2500.0,0.0002478,2]
[379240970,1755216633959,-3009.96667751,0.00024789,2]
[379240971,1755216633968,-8127.30079782,0.00024789,2]
[379240972,1755216633978,-2965.39208325,0.0002479,2]
[379240973,1755216633987,-275.4384,0.0002479,2]
[379240974,1755216633997,-10000.0,0.0002479,2]
[379240975,1755216634006,-150.0,0.00024792,2]
[379240976,1755216634015,-3398.28657335,0.000248,9]
[379240977,1755216634165,-448.24082845,0.000248,9]
[379240999,1755216638452,-250.0,0.0002306,2]
[379241000,1755216638463,-1653.4725982,0.000248,9]
[379241001,1755216638474,-2176.16040402,0.00024843,2]
[379241002,1755216638525,-457.31329216,0.00024843,2]
[379241057,1755216640671,-376.49298124,0.00024843,2]
[379241059,1755216640682,-567.0,0.00024846,2]
[379241061,1755216640691,-8127.30079776,0.00024849,2]
[379241063,1755216640701,-150.0,0.00024878,2]
[379241064,1755216640712,-150.0,0.00024878,2]
[379241065,1755216640722,-150.0,0.00024878,2]
[379241066,1755216640733,-150.0,0.00024878,2]
[379241067,1755216640743,-500.0,0.00024878,2]
[379241068,1755216640753,-31257.5199455,0.00024879,2]
[379241069,1755216640763,-328203.959428,0.0002488,2]
[379241070,1755216640772,-192.53148686,0.0002488,2]
[379241071,1755216640782,-2178.23,0.0002488,2]
[379241072,1755216640793,-400.0,0.00024887,2]
[379241073,1755216640804,-400.0,0.00024887,2]
[379241074,1755216640813,-10656.09,0.00024888,2]
[379241076,1755216640823,-2208.72,0.00024888,2]
[379241078,1755216640833,-400.0,0.00024888,2]
[379241083,1755216640964,-400.0,0.00024888,2]
[379241084,1755216640974,-3796.11,0.00024888,2]
[379241085,1755216640984,-400.0,0.00024888,2]
[379241086,1755216640993,-4474.77,0.00024888,2]
[379241087,1755216641003,-400.0,0.00024888,2]
[379241088,1755216641012,-400.0,0.00024888,2]
[379241089,1755216641021,-400.0,0.00024888,2]
[379241090,1755216641031,-400.0,0.00024888,2]
[379241091,1755216641041,-400.0,0.00024888,2]
[379241092,1755216641050,-10863.85,0.00024888,2]
[379241093,1755216641060,-400.0,0.00024888,2]
[379241094,1755216641069,-400.0,0.00024888,2]
[379241095,1755216641079,-400.0,0.00024888,2]
[379241096,1755216641088,-9303.39,0.00024888,2]
[379241097,1755216641097,-400.0,0.00024888,2]
[379241098,1755216641107,-400.0,0.00024888,2]
[379241099,1755216641116,-400.0,0.00024888,2]
[379241100,1755216641126,-5069.4,0.00024888,2]
[379241101,1755216641135,-400.0,0.00024888,2]
[379241102,1755216641144,-400.0,0.00024888,2]
[379241103,1755216641154,-6479.2,0.00024888,2]
[379241104,1755216641164,-400.0,0.00024888,2]
[379241105,1755216641174,-400.0,0.00024888,2]
[379241106,1755216641183,-400.0,0.00024888,2]
[379241107,1755216641193,-17344.49,0.00024888,2]
[379241108,1755216641202,-1482.29,0.00024888,2]
[379241109,1755216641211,-400.0,0.00024888,2]
[379241110,1755216641221,-400.0,0.00024888,2]
[379241111,1755216641231,-400.0,0.00024888,2]
[379241112,1755216641241,-5433.05,0.00024888,2]
[379241113,1755216641251,-400.0,0.00024888,2]
[379241114,1755216641261,-400.0,0.00024888,2]
[379241115,1755216641270,-5569.61,0.00024888,2]
[379241116,1755216641280,-400.0,0.00024888,2]
[379241117,1755216641289,-8580.05,0.00024888,2]
[379241118,1755216641299,-400.0,0.00024888,2]
[379241119,1755216641308,-400.0,0.00024888,2]
[379241120,1755216641318,-14187.77,0.00024888,2]
[379241121,1755216641330,-4220.73,0.00024888,2]
[379241122,1755216641340,-13441.01,0.00024888,2]
[379241123,1755216641350,-2178.23,0.00024888,2]
[379241124,1755216641360,-795.44,0.00024888,2]
[379241125,1755216641369,-12310.04,0.00024888,2]
[379241126,1755216641379,-156.81058968,0.00024889,2]
[379241127,1755216641601,-217.50336005,0.00024889,2]
[379241128,1755216641611,-364.38874097,0.00024889,2]
[379241129,1755216641620,-400.0,0.00024889,2]
[379241130,1755216641630,-400.0,0.00024889,2]
[379241131,1755216641639,-400.0,0.00024889,2]
[379241132,1755216641648,-400.0,0.00024889,2]
[379241133,1755216641659,-400.0,0.00024889,2]
[379241134,1755216641668,-169.12713066,0.00024889,2]
[379241135,1755216641678,-400.0,0.00024889,2]
[379241136,1755216641688,-400.0,0.00024889,2]
[379241137,1755216641698,-400.0,0.00024889,2]
[379241138,1755216641707,-400.0,0.00024889,2]
[379241139,1755216641716,-400.70671271,0.00024889,2]
[379241140,1755216641726,-400.0,0.00024889,2]
[379241141,1755216641736,-400.0,0.00024889,2]
[379241142,1755216641745,-400.0,0.00024889,2]
[379241143,1755216641755,-400.0,0.00024889,2]
[379241144,1755216641764,-400.0,0.00024889,2]
[379241145,1755216641774,-10590.78,0.00024889,2]
[379241146,1755216641783,-391.69971631,0.00024889,2]
[379241147,1755216641793,-400.0,0.00024889,2]
[379241148,1755216641802,-400.0,0.00024889,2]
[379241149,1755216641813,-400.0,0.00024889,2]
[379241150,1755216641823,-400.0,0.00024889,2]
[379241151,1755216641834,-400.0,0.00024889,2]
[379241152,1755216641843,-400.0,0.00024889,2]
[379241153,1755216641853,-400.0,0.00024889,2]
[379241154,1755216641863,-400.0,0.00024889,2]
[379241155,1755216641877,-400.0,0.00024889,2]
[379241156,1755216641887,-400.0,0.00024889,2]
[379241157,1755216641897,-400.0,0.00024889,2]
[379241158,1755216641907,-400.0,0.00024889,2]
[379241159,1755216641916,-400.0,0.00024889,2]
[379241160,1755216641926,-400.0,0.00024889,2]
[379241161,1755216641936,-1000.0,0.00024889,2]
[379241162,1755216641946,-400.0,0.00024889,2]
[379241163,1755216641956,-400.0,0.00024889,2]
[379241164,1755216641966,-400.0,0.00024889,2]
[379241165,1755216641976,-400.0,0.00024889,2]
[379241166,1755216641986,-400.0,0.00024889,2]
[379241167,1755216641995,-8299.33,0.00024889,2]
[379241168,1755216642005,-400.0,0.00024889,2]
[379241169,1755216642015,-400.0,0.00024889,2]
[379241170,1755216642025,-2491.25,0.00024889,2]
[379241171,1755216642034,-400.0,0.00024889,2]
[379241172,1755216642044,-400.0,0.00024889,2]
[379241173,1755216642054,-400.0,0.00024889,2]
[379241174,1755216642063,-400.0,0.00024889,2]
[379241175,1755216642073,-400.0,0.00024889,2]
[379241176,1755216642084,-3199.47,0.00024889,2]
[379241177,1755216642093,-3030.25344,0.00024889,2]
[379241178,1755216642103,-4497.582689,0.00024889,2]
[379241179,1755216642113,-400.0,0.00024889,2]
[379241180,1755216642123,-1932.65,0.00024889,2]
[379241181,1755216642132,-251.21061,0.00024889,2]
[379241182,1755216642142,-400.0,0.00024889,2]
[379241183,1755216642151,-400.0,0.00024889,2]
[379241184,1755216642162,-2834.08,0.00024889,2]
[379241185,1755216642171,-400.0,0.00024889,2]
[379241186,1755216642181,-2369.48,0.00024889,2]
[379241187,1755216642191,-400.0,0.00024889,2]
[379241188,1755216642201,-4184.565845,0.00024889,2]
[379241189,1755216642211,-10995.15,0.00024889,2]
[379241190,1755216642220,-400.0,0.00024889,2]
[379241191,1755216642230,-5239.43,0.00024889,2]
[379241192,1755216642240,-400.0,0.00024889,2]
[379241193,1755216642250,-400.0,0.00024889,2]
[379241194,1755216642260,-10300.76,0.00024889,2]
[379241195,1755216642270,-290.903022,0.00024889,2]
[379241196,1755216642279,-6953.15,0.00024889,2]
[379241197,1755216642289,-224.18677,0.00024889,2]
[379241198,1755216642299,-1017.55,0.00024889,2]
[379241199,1755216642309,-5165.33,0.00024889,2]
[379241200,1755216642320,-5630.98,0.00024889,2]
[379241201,1755216642330,-6609.96,0.00024889,2]
[379241202,1755216642340,-25742.44,0.00024889,2]
[379241203,1755216642350,-3795.73,0.00024889,2]
[379241204,1755216642361,-1099.19,0.00024889,2]
[379241205,1755216642371,-400.0,0.00024889,2]
[379241206,1755216642382,-5271.78,0.00024889,2]
[379241207,1755216642392,-400.0,0.00024889,2]
[379241208,1755216642402,-400.0,0.00024889,2]
[379241209,1755216642411,-5383.27,0.00024889,2]
[379241210,1755216642421,-5383.27,0.00024889,2]
[379241211,1755216642432,-5383.27,0.00024889,2]
[379241212,1755216642444,-5383.27,0.00024889,2]
[379241213,1755216642455,-5383.27,0.00024889,2]
[379241214,1755216642466,-5383.27,0.00024889,2]
[379241215,1755216642476,-8783.85,0.00024889,2]
[379241216,1755216642489,-400.0,0.00024889,2]
[379241217,1755216642499,-308.58213457,0.00024889,2]
[379241218,1755216642509,-10811.25,0.00024889,2]
[379241219,1755216642519,-5409.75,0.00024889,2]
[379241220,1755216642529,-400.0,0.00024889,2]
[379241221,1755216642538,-400.0,0.00024889,2]
[379241222,1755216642548,-2178.23,0.00024889,2]
[379241223,1755216642559,-2178.23,0.00024889,2]
[379241224,1755216642569,-2178.23,0.00024889,2]
[379241225,1755216642578,-2178.23,0.00024889,2]
[379241226,1755216642588,-2178.23,0.00024889,2]
[379241227,1755216642597,-2178.23,0.00024889,2]
[379241228,1755216642607,-871.53,0.00024889,2]
[379241229,1755216642617,-2178.23,0.00024889,2]
[379241230,1755216642626,-2178.23,0.00024889,2]
[379241231,1755216642636,-400.0,0.00024889,2]
[379241232,1755216642646,-2178.23,0.00024889,2]
[379241233,1755216642655,-2178.23,0.00024889,2]
[379241234,1755216642667,-3794.4,0.00024889,2]
[379241235,1755216642676,-400.0,0.00024889,2]
[379241236,1755216642685,-595.34,0.00024889,2]
[379241237,1755216642695,-4678.64,0.00024889,2]
[379241238,1755216642704,-400.0,0.00024889,2]
[379241239,1755216642713,-5399.0,0.00024889,2]
[379241240,1755216642723,-14395.38,0.00024889,2]
[379241241,1755216642732,-892955.23757344,0.0002489,2]
[379241309,1755216681569,-150.0,0.00024478,2]
[379241310,1755216681593,-4808.2888,0.0002478,2]
[379241311,1755216681616,-162.90358749,0.00024788,2]
[379241312,1755216681639,-162.90358747,0.00024872,2]
[379241313,1755216681661,-200.52899506,0.00024879,2]
[379241314,1755216681683,-400.0,0.00024887,2]
[379241315,1755216681707,-401.62567285,0.00024887,2]
[379241316,1755216681728,-400.0,0.00024887,2]
[379241317,1755216681749,-400.0,0.00024887,2]
[379241318,1755216681770,-152.59608441,0.00024887,2]
[379241319,1755216681792,-400.0,0.00024887,2]
[379241320,1755216681814,-400.0,0.00024887,2]
[379241321,1755216681836,-400.0,0.00024887,2]
[379241322,1755216681857,-400.0,0.00024887,2]
[379241323,1755216681879,-6216.63,0.00024888,2]
[379241324,1755216681900,-3199.48,0.00024888,2]
[379241325,1755216681920,-4509.52,0.00024888,2]
[379241326,1755216681946,-7953.52,0.00024888,2]
[379241327,1755216681968,-8417.91,0.00024888,2]
[379241328,1755216681990,-500.0,0.00024888,2]
[379241329,1755216682015,-150.0,0.00024888,2]
[379241330,1755216682036,-1263.59,0.00024889,2]
[379241331,1755216682057,-9073.28,0.00024889,2]
[379241332,1755216682078,-400.0,0.00024889,2]
[379241333,1755216682099,-1124.91,0.00024889,2]
[379241334,1755216682120,-400.0,0.00024889,2]
[379241335,1755216682142,-810.0,0.00024889,2]
[379241336,1755216682164,-4302.85,0.00024889,2]
[379241337,1755216682186,-4353.62,0.00024889,2]
[379241338,1755216682213,-8647.96,0.00024889,2]
[379241339,1755216682239,-17304.06,0.00024889,2]
[379241340,1755216682262,-1027.02,0.00024889,2]
[379241341,1755216682286,-400.0,0.00024889,2]
[379241342,1755216682310,-4765.34,0.00024889,2]
[379241343,1755216682335,-31134.9145978,0.0002489,2]
[379241344,1755216682359,-53503.02079943,0.0002489,2]
[379241345,1755216682383,-121703.52787549,0.0002489,2]
[379241347,1755216733522,-300.0,0.00021724,2]
[379241348,1755216733544,-1000.0,0.00023298,2]
[379241349,1755216733565,-300.0,0.00023298,2]
[379241350,1755216733586,-500.0,0.00023298,2]
[379241351,1755216733606,-150.0,0.00024178,2]
[379241352,1755216733627,-600.0,0.0002442,2]
[379241353,1755216733647,-300.0,0.0002442,2]
[379241354,1755216733667,-151.0,0.0002442,2]
[379241355,1755216733687,-160.0,0.0002442,2]
[379241356,1755216733707,-304.12,0.00024771,2]
[379241357,1755216733728,-1000.0,0.0002478,2]
[379241358,1755216733748,-400.0,0.00024887,2]
[379241359,1755216733769,-400.0,0.00024887,2]
[379241360,1755216733789,-400.0,0.00024887,2]
[379241361,1755216733811,-400.0,0.00024887,2]
[379241362,1755216733832,-400.0,0.00024887,2]
[379241363,1755216733853,-400.0,0.00024887,2]
[379241364,1755216733873,-400.0,0.00024887,2]
[379241365,1755216733893,-400.0,0.00024887,2]
[379241366,1755216733915,-9871.56,0.00024888,2]
[379241367,1755216733938,-2387.45,0.00024888,2]
[379241368,1755216733959,-3052.67,0.00024888,2]
[379241369,1755216733981,-2287.42,0.00024888,2]
[379241370,1755216734001,-5396.36,0.00024888,2]
[379241371,1755216734021,-524.71926708,0.00024889,2]
[379241372,1755216734046,-165.2693134,0.00024889,2]
[379241373,1755216734066,-400.0,0.00024889,2]
[379241374,1755216734087,-2525.04,0.00024889,2]
[379241375,1755216734110,-4053.06,0.00024889,2]
[379241376,1755216734132,-7870.12,0.00024889,2]
[379241377,1755216734151,-400.0,0.00024889,2]
[379241378,1755216734171,-457.61,0.00024889,2]
[379241379,1755216734195,-5050.16,0.00024889,2]
[379241380,1755216734217,-4609.47,0.00024889,2]
[379241381,1755216734237,-400.0,0.00024889,2]
[379241382,1755216734258,-1210.93,0.00024889,2]
[379241383,1755216734280,-12172.74,0.00024889,2]
[379241384,1755216734301,-5455.18,0.00024889,2]
[379241385,1755216734323,-3740.97,0.00024889,2]
[379241386,1755216734343,-2131.79,0.00024889,2]
[379241387,1755216734367,-462045.07608562,0.0002489,2]
[379241388,1755216734390,-176827.2853339,0.0002489,2]
[379241389,1755216743074,3997.82,0.00030136,120]
[379241390,1755216761869,170.0,0.000301,120]
[379241391,1755216771055,-150.0,0.00024178,2]
[379241392,1755216771076,-150.0,0.00024178,2]
[379241393,1755216771098,-1000.0,0.0002442,2]
[379241394,1755216771118,-500.0,0.0002442,2]
[379241395,1755216771139,-500.0,0.0002442,2]
[379241396,1755216771162,-500.0,0.0002442,2]
[379241397,1755216771184,-200.0,0.0002442,2]
[379241398,1755216771205,-200.0,0.0002442,2]
[379241399,1755216771226,-200.0,0.0002442,2]
[379241400,1755216771250,-200.0,0.0002442,2]
[379241401,1755216771272,-200.0,0.0002442,2]
[379241402,1755216771293,-277.35679052,0.0002442,2]
[379241403,1755216771313,-2500.0,0.0002478,2]
[379241404,1755216771335,-985.8159,0.0002478,2]
[379241405,1755216771356,-239.69509286,0.0002479,2]
[379241406,1755216771378,-702.92,0.0002487,3]
[379241407,1755216771399,-239.6950928,0.00024885,2]
[379241408,1755216771421,-2116.69,0.00024887,2]
[379241409,1755216771440,-400.0,0.00024887,2]
[379241410,1755216771460,-4427.02,0.00024887,2]
[379241411,1755216771481,-400.0,0.00024887,2]
[379241412,1755216771501,-400.0,0.00024887,2]
[379241413,1755216771527,-400.0,0.00024887,2]
[379241414,1755216771547,-400.0,0.00024887,2]
[379241415,1755216771570,-10427.86,0.00024887,2]
[379241416,1755216771592,-400.0,0.00024887,2]
[379241417,1755216771613,-443.03370869,0.00024887,2]
[379241418,1755216771634,-400.0,0.00024887,2]
[379241419,1755216771654,-400.0,0.00024887,2]
[379241420,1755216771675,-7371.42,0.00024887,2]
[379241421,1755216771695,-400.0,0.00024887,2]
[379241422,1755216771715,-400.0,0.00024888,2]
[379241423,1755216771735,-3637.57,0.00024888,2]
[379241424,1755216771758,-24718.05,0.00024888,2]
[379241425,1755216771781,-5728.61,0.00024888,2]
[379241426,1755216771801,-406.79813496,0.00024889,2]
[379241427,1755216771822,-400.0,0.00024889,2]
[379241428,1755216771843,-15142.5,0.00024889,2]
[379241429,1755216771863,-5482.84,0.00024889,2]
[379241430,1755216771886,-1629.14,0.00024889,2]
[379241431,1755216771906,-400.0,0.00024889,2]
[379241432,1755216771926,-400.0,0.00024889,2]
[379241433,1755216771947,-2504.48,0.00024889,2]
[379241434,1755216771970,-4111.03,0.00024889,2]
[379241435,1755216771992,-3706.87,0.00024889,2]
[379241436,1755216772014,-5156.46,0.00024889,2]
[379241437,1755216772036,-1927.8,0.00024889,2]
[379241438,1755216772057,-13414.7,0.00024889,2]
[379241439,1755216772079,-578701.64528017,0.0002489,2]
[379241440,1755216820837,-150.0,0.00024178,2]
[379241441,1755216820861,-209.40437684,0.0002442,2]
[379241442,1755216820883,-7290.75398879,0.00024787,2]
[379241443,1755216820905,-5000.0,0.00024789,2]
[379241444,1755216820926,-5656.21492757,0.0002479,2]
[379241445,1755216820948,-7290.75398877,0.00024841,2]
[379241446,1755216820969,-5656.21492756,0.00024844,2]
[379241447,1755216820995,-351.44,0.0002487,3]
[379241448,1755216821016,-500.0,0.00024873,2]
[379241449,1755216821037,-500.0,0.00024873,2]
[379241450,1755216821057,-395.21779047,0.00024873,2]
[379241451,1755216900253,-788.98,0.00023852,2]
[379241452,1755216900274,-150.0,0.00023973,2]
[379241453,1755216900297,-302.44,0.00024503,2]
[379241454,1755216900319,-532.18,0.00024652,2]
[379241455,1755216900340,-819.6026422,0.00024772,2]
[379241456,1755216900361,-34532.0512,0.0002478,2]
[379241457,1755216900384,-1000.0,0.0002478,2]
[379241458,1755216900407,-190310.13,0.0002478,2]
[379241459,1755216900431,-1500.0,0.0002478,2]
[379241460,1755216900453,-1038.68510857,0.0002479,2]
[379241461,1755216900474,-104.78220953,0.00024873,2]
[379241462,1755216900496,-219.71012623,0.00024873,2]
[379241463,1755216900517,-500.0,0.00024873,2]
[379241464,1755216900538,-500.0,0.00024873,2]
[379241465,1755216900563,-500.0,0.00024873,2]
[379241466,1755216900585,-500.0,0.00024873,2]
[379241467,1755216900606,-500.0,0.00024873,2]
[379241468,1755216900628,-164.65564295,0.00024873,2]
[379241469,1755216900650,-500.0,0.00024873,2]
[379241470,1755216900670,-500.0,0.00024873,2]
[379241471,1755216900692,-500.0,0.00024873,2]
[379241472,1755216900714,-500.0,0.00024873,2]
[379241473,1755216900735,-500.0,0.00024873,2]
[379241474,1755216900756,-500.81464652,0.00024873,2]
[379241475,1755216900776,-500.0,0.00024873,2]
[379241476,1755216900797,-500.0,0.00024873,2]
[379241477,1755216900819,-500.0,0.00024873,2]
[379241478,1755216900840,-3904.58,0.00024879,2]
[379241479,1755216900861,-4220.67,0.0002488,2]
[379241480,1755216900885,-129410.718424,0.0002488,2]
[379241481,1755216902353,300.0,0.00025,120]
[379241482,1755216932222,300.0,0.0003,120]
[379241483,1755217028442,205.41033753,0.0003,120]
[379241484,1755217059095,400.0,0.00030136,120]
[379241485,1755217064017,396.0,0.0003013,120]
[379241486,1755217067165,400.0,0.00030136,120]
[379241487,1755217074070,300.0,0.0003,120]
[379241488,1755217074834,400.0,0.00030136,120]
[379241489,1755217083992,400.0,0.00030136,120]
[379241490,1755217091263,400.0,0.00030136,120]
[379241491,1755217091482,300.0,0.0003,120]
[379241492,1755217113658,1500.0,0.00030136,120]
[379241493,1755217124092,166.0,0.0003013,120]
[379241494,1755217140102,400.0,0.00030136,120]
[379241495,1755217178457,241.05,0.00026928,120]
[379241496,1755217178705,241.05,0.0002992,120]
[379241498,1755217193657,157.14,0.00013699,2]
[379241499,1755217239939,222.0,0.00030136,120]
[379241500,1755217254354,155.0,0.00025999,30]
[379241501,1755217271372,1500.0,0.00030136,120]
[379241502,1755217276919,400.0,0.00030136,120]
[379241503,1755217307648,5025.38,0.00030137,120]
[379241504,1755217333323,3032.56,0.00030137,120]
[379241505,1755217369562,1500.0,0.00030136,120]
[379241506,1755217406890,1346.0,0.00030136,120]
[379241521,1755217497894,2642.04968162,0.00030137,120]
[379241522,1755217505442,335.77,0.00024685,30]
[379241523,1755217508736,176175.81289872,0.00019,2]
[379241524,1755217514070,1332.91078378,0.00022,30]
[379241525,1755217526014,2478.67900799,0.00025,30]
[379241526,1755217535921,9773.60677919,9e-05,2]
[379241528,1755217554820,11747.88594241,0.0003,120]
[379241529,1755217562679,3000.0,0.00030137,120]
[379241530,1755217578469,14055.49665942,0.000209,30]
[379241532,1755217627789,1271.13350381,0.0002301,120]
[379241538,1755217650551,1849.32808953,0.00023,30]
[379241539,1755217676022,304050.65509255,0.00019,2]
[379241540,1755217711256,200.0,0.00030136,120]
[379241552,1755217831766,-1173.0,0.000226,2]